fUST/lending_fUST_20250727
["ID","MTS","AMOUNT","RATE_DAILY","PERIOD"]
[375188186,1753581071615,-460.0,0.0002279,2]
[375188187,1753581071624,-756.57,0.0002279,2]
[375188189,1753581071633,-460.0,0.0002279,2]
[375188191,1753581071643,-471.46,0.0002279,2]
[375188193,1753581071653,-1620.18,0.0002279,2]
[375188195,1753581071663,-460.0,0.0002279,2]
[375188197,1753581071672,-291.34274226,0.0002279,2]
[375188199,1753581071681,-589.86835794,0.0002279,2]
[375188201,1753581071691,-1840.08,0.0002279,2]
[375188203,1753581071701,-460.0,0.0002279,2]
[375188205,1753581071710,-460.0,0.0002279,2]
[375188207,1753581071719,-1601.61,0.0002279,2]
[375188209,1753581071729,-460.0,0.0002279,2]
[375188211,1753581071739,-460.0,0.0002279,2]
[375188213,1753581071748,-460.0,0.0002279,2]
[375188215,1753581071758,-663.29,0.0002279,2]
[375188217,1753581071768,-522.23,0.0002279,2]
[375188219,1753581071778,-1432.36,0.0002279,2]
[375188221,1753581071787,-460.0,0.0002279,2]
[375188223,1753581071797,-460.0,0.0002279,2]
[375188225,1753581071807,-663.2,0.0002279,2]
[375188227,1753581071817,-507.63,0.0002279,2]
[375188230,1753581071833,-460.0,0.0002279,2]
[375188231,1753581071842,-682.33,0.0002279,2]
[375188233,1753581071852,-460.0,0.00022793,2]
[375188236,1753581071862,-3030.31,0.00022793,2]
[375188238,1753581071873,-1017.69,0.00022793,2]
[375188240,1753581071883,-1075.9,0.00022793,2]
[375188242,1753581071892,-1162.34,0.00022796,2]
[375188244,1753581071902,-1676.65,0.00022796,2]
[375188245,1753581071911,-1307.85,0.00022796,2]
[375188248,1753581071921,-151.0,0.00022796,7]
[375188250,1753581071931,-5819.64290364,0.00022797,7]
[375188252,1753581071940,-856.77,0.000228,2]
[375188254,1753581071949,-500.0,0.0002286,2]
[375188255,1753581071958,-6187.93913489,0.00022916,2]
[375188257,1753581071967,-557.89,0.00022916,5]
[375188260,1753581071977,-557.88,0.00022917,7]
[375188261,1753581071987,-420.57,0.00022975,2]
[375188264,1753581071996,-18524.71798926,0.00023,15]
[375188266,1753581072006,-152.926859,0.00023,7]
[375188267,1753581072015,-160.0,0.00023,2]
[375188269,1753581072024,-526.20897225,0.00023,3]
[375188271,1753581072033,-160.0,0.00023,3]
[375188273,1753581072043,-5819.64290364,0.00023003,8]
[375188275,1753581072052,-557.89,0.00023016,6]
[375188277,1753581072061,-557.88,0.00023017,7]
[375188279,1753581072070,-151.0,0.00023022,7]
[375188281,1753581072080,-151.0,0.00023022,7]
[375188283,1753581072089,-151.0,0.00023022,7]
[375188285,1753581072098,-151.0,0.00023022,2]
[375188287,1753581072108,-151.0,0.00023022,2]
[375188289,1753581072118,-151.0,0.00023022,2]
[375188291,1753581072128,-151.0,0.00023022,2]
[375188293,1753581072137,-160.92674283,0.00023022,2]
[375188295,1753581072146,-25000.0,0.00023022,2]
[375188297,1753581072156,-3801.642,0.00023022,2]
[375188299,1753581072167,-10904.75891562,0.00023022,2]
[375188301,1753581072177,-151.0,0.00023022,2]
[375188304,1753581072187,-151.0,0.00023022,2]
[375188305,1753581072200,-151.0,0.00023022,2]
[375188307,1753581072216,-151.0,0.00023022,2]
[375188310,1753581072229,-151.0,0.00023022,2]
[375188312,1753581072241,-151.0,0.00023022,2]
[375188313,1753581072253,-151.0,0.00023022,2]
[375188315,1753581072263,-151.0,0.00023022,2]
[375188317,1753581072272,-151.0,0.00023022,2]
[375188319,1753581072281,-151.0,0.00023022,2]
[375188321,1753581072292,-151.0,0.00023022,2]
[375188323,1753581072302,-151.0,0.00023022,2]
[375188326,1753581072312,-151.0,0.00023022,2]
[375188327,1753581072321,-151.0,0.00023022,2]
[375188329,1753581072332,-151.0,0.00023022,2]
[375188332,1753581072342,-151.0,0.00023022,2]
[375188334,1753581072351,-151.0,0.00023022,2]
[375188336,1753581072360,-151.0,0.00023022,2]
[375188338,1753581072372,-291.18913902,0.00023022,2]
[375188340,1753581072381,-151.0,0.00023022,2]
[375188342,1753581072390,-151.0,0.00023022,2]
[375188344,1753581072399,-151.0,0.00023022,2]
[375188346,1753581072409,-151.0,0.00023022,2]
[375188347,1753581072419,-151.0,0.00023022,2]
[375188349,1753581072430,-151.0,0.00023022,2]
[375188352,1753581072440,-502.05411089,0.00023022,2]
[375188354,1753581072450,-151.0,0.00023022,2]
[375188355,1753581072459,-151.0,0.00023022,2]
[375188357,1753581072468,-460.0,0.00023064,2]
[375188359,1753581072477,-486.57,0.00023064,2]
[375188361,1753581072488,-460.0,0.00023064,2]
[375188363,1753581072497,-463.5,0.00023064,2]
[375188365,1753581072507,-1684.43,0.00023064,2]
[375188367,1753581072516,-460.0,0.00023064,2]
[375188368,1753581072525,-1072.02,0.00023064,2]
[375188369,1753581072534,-460.0,0.00023064,2]
[375188370,1753581072543,-392.91033859,0.00023064,2]
[375188371,1753581072552,-2025.96,0.00023064,2]
[375188372,1753581072561,-460.0,0.00023064,2]
[375188373,1753581072571,-460.0,0.00023064,2]
[375188374,1753581072580,-1006.77,0.00023064,2]
[375188375,1753581072589,-460.0,0.00023064,2]
[375188376,1753581072599,-460.0,0.00023064,2]
[375188385,1753581072688,-460.0,0.00023064,2]
[375188387,1753581072697,-674.58,0.00023064,2]
[375188389,1753581072707,-460.0,0.00023064,2]
[375188391,1753581072717,-756.57,0.00023064,2]
[375188393,1753581072729,-460.0,0.00023064,2]
[375188395,1753581072739,-471.46,0.00023064,2]
[375188397,1753581072749,-1620.18,0.00023064,2]
[375188399,1753581072758,-460.0,0.00023064,2]
[375188401,1753581072768,-1840.08,0.00023064,2]
[375188403,1753581072777,-486.48867009,0.00023064,2]
[375188405,1753581072787,-460.0,0.00023064,2]
[375188407,1753581072797,-1601.61,0.00023064,2]
[375188409,1753581072806,-460.0,0.00023064,2]
[375188411,1753581072816,-460.0,0.00023064,2]
[375188413,1753581072826,-460.0,0.00023064,2]
[375188415,1753581072836,-663.29,0.00023064,2]
[375188417,1753581072845,-522.23,0.00023064,2]
[375188419,1753581072855,-1432.36,0.00023064,2]
[375188421,1753581072865,-460.0,0.00023064,2]
[375188423,1753581072875,-295.13595126,0.00023064,2]
[375188425,1753581072885,-663.2,0.00023064,2]
[375188427,1753581072895,-507.63,0.00023064,2]
[375188429,1753581072904,-460.0,0.00023064,2]
[375188431,1753581072914,-682.33,0.00023064,2]
[375188433,1753581072923,-403.29756626,0.00023067,2]
[375188435,1753581072933,-3030.31,0.00023067,2]
[375188437,1753581072942,-1017.69,0.00023067,2]
[375188439,1753581072952,-1075.9,0.00023067,2]
[375188441,1753581072963,-1162.34,0.0002307,2]
[375188443,1753581072972,-1676.65,0.0002307,2]
[375188445,1753581072982,-1307.85,0.0002307,2]
[375188447,1753581072992,-3942.302754,0.00023077,2]
[375188450,1753581073002,-3126.17646954,0.00023108,2]
[375188452,1753581073012,-557.9,0.00023116,2]
[375188454,1753581073022,-4088.1679559,0.00023132,2]
[375188456,1753581073031,-150.0,0.00023163,2]
[375188458,1753581073041,-4239.43017027,0.00023187,2]
[375188460,1753581073050,-154.980881,0.00023202,15]
[375188462,1753581073060,-5819.64290364,0.0002321,8]
[375188464,1753581073069,-2039.06,0.000233,7]
[375188466,1753581073079,-23414.23,0.000233,2]
[375188468,1753581073089,-158.96282603,0.00023338,2]
[375188470,1753581073098,-486.57,0.00023338,2]
[375188472,1753581073107,-460.0,0.00023338,2]
[375188474,1753581073117,-463.5,0.00023338,2]
[375188476,1753581073126,-1684.43,0.00023338,2]
[375188478,1753581073136,-460.0,0.00023338,2]
[375188480,1753581073145,-1072.02,0.00023338,2]
[375188482,1753581073155,-460.0,0.00023338,2]
[375188484,1753581073164,-2025.96,0.00023338,2]
[375188486,1753581073173,-460.0,0.00023338,2]
[375188488,1753581073183,-460.0,0.00023338,2]
[375188490,1753581073192,-1006.77,0.00023338,2]
[375188492,1753581073202,-460.0,0.00023338,2]
[375188494,1753581073211,-460.0,0.00023338,2]
[375188496,1753581073220,-460.0,0.00023338,2]
[375188498,1753581073229,-674.58,0.00023338,2]
[375188500,1753581073239,-460.0,0.00023338,2]
[375188501,1753581073248,-756.57,0.00023338,2]
[375188503,1753581073257,-460.0,0.00023338,2]
[375188505,1753581073266,-471.46,0.00023338,2]
[375188507,1753581073276,-1620.18,0.00023338,2]
[375188509,1753581073285,-460.0,0.00023338,2]
[375188511,1753581073295,-1840.08,0.00023338,2]
[375188513,1753581073304,-460.0,0.00023338,2]
[375188515,1753581073314,-1601.61,0.00023338,2]
[375188517,1753581073323,-460.0,0.00023338,2]
[375188519,1753581073334,-460.0,0.00023338,2]
[375188521,1753581073344,-460.0,0.00023338,2]
[375188523,1753581073354,-663.29,0.00023338,2]
[375188525,1753581073363,-522.23,0.00023338,2]
[375188528,1753581073375,-1432.36,0.00023338,2]
[375188530,1753581073385,-460.0,0.00023338,2]
[375188532,1753581073394,-663.2,0.00023338,2]
[375188534,1753581073404,-507.63,0.00023338,2]
[375188536,1753581073414,-460.0,0.00023338,2]
[375188538,1753581073428,-682.33,0.00023338,2]
[375188540,1753581073438,-151.0,0.0002334,7]
[375188542,1753581073447,-3030.31,0.00023341,2]
[375188544,1753581073457,-1017.69,0.00023341,2]
[375188546,1753581073468,-1075.9,0.00023341,2]
[375188548,1753581073477,-1162.34,0.00023344,2]
[375188550,1753581073489,-1676.65,0.00023344,2]
[375188552,1753581073500,-1307.85,0.00023344,2]
[375188554,1753581073510,-787.04,0.000234,7]
[375188556,1753581073519,-154.980881,0.00023405,15]
[375188558,1753581073528,-154.980881,0.00023408,2]
[375188560,1753581073538,-5819.64290364,0.00023417,9]
[375188561,1753581073547,-6187.93913489,0.00023451,2]
[375188563,1753581073556,-160.0,0.00023493,3]
[375188565,1753581073565,-25000.0,0.0002357,2]
[375188567,1753581073575,-154.980881,0.00023608,15]
[375188569,1753581073586,-486.57,0.00023612,2]
[375188571,1753581073595,-460.0,0.00023612,2]
[375188573,1753581073605,-463.5,0.00023612,2]
[375188575,1753581073617,-1684.43,0.00023612,2]
[375188578,1753581073627,-460.0,0.00023612,2]
[375188579,1753581073636,-1072.02,0.00023612,2]
[375188581,1753581073646,-460.0,0.00023612,2]
[375188583,1753581073656,-2025.96,0.00023612,2]
[375188585,1753581073666,-460.0,0.00023612,2]
[375188587,1753581073675,-460.0,0.00023612,2]
[375188589,1753581073685,-1006.77,0.00023612,2]
[375188591,1753581073695,-460.0,0.00023612,2]
[375188593,1753581073705,-460.0,0.00023612,2]
[375188595,1753581073714,-460.0,0.00023612,2]
[375188597,1753581073724,-674.58,0.00023612,2]
[375188599,1753581073734,-460.0,0.00023612,2]
[375188601,1753581073743,-756.57,0.00023612,2]
[375188603,1753581073753,-460.0,0.00023612,2]
[375188605,1753581073762,-471.46,0.00023612,2]
[375188607,1753581073772,-1620.18,0.00023612,2]
[375188609,1753581073781,-460.0,0.00023612,2]
[375188611,1753581073790,-1840.08,0.00023612,2]
[375188613,1753581073800,-460.0,0.00023612,2]
[375188615,1753581073809,-1601.61,0.00023612,2]
[375188617,1753581073818,-292.56704339,0.00023612,2]
[375188619,1753581073828,-460.0,0.00023612,2]
[375188621,1753581073837,-445.76776885,0.00023612,2]
[375188623,1753581073846,-663.29,0.00023612,2]
[375188625,1753581073856,-522.23,0.00023612,2]
[375188627,1753581073867,-1432.36,0.00023612,2]
[375188629,1753581073876,-460.0,0.00023612,2]
[375188631,1753581073885,-663.2,0.00023612,2]
[375188633,1753581073895,-507.63,0.00023612,2]
[375188635,1753581073904,-460.0,0.00023612,2]
[375188637,1753581073914,-682.33,0.00023612,2]
[375188639,1753581073923,-3030.31,0.00023615,2]
[375188641,1753581073933,-1017.69,0.00023615,2]
[375188643,1753581073943,-1075.9,0.00023615,2]
[375188645,1753581073953,-1162.34,0.00023618,2]
[375188647,1753581073962,-1676.65,0.00023618,2]
[375188649,1753581073971,-1307.85,0.00023618,2]
[375188651,1753581073980,-151.0,0.00023618,7]
[375188653,1753581073989,-151.0,0.00023624,7]
[375188655,1753581073999,-151.0,0.00023624,7]
[375188657,1753581074009,-5819.64290364,0.00023624,9]
[375188659,1753581074019,-154.980881,0.00023651,4]
[375188661,1753581074028,-160.0,0.00023682,4]
[375188663,1753581074038,-2523.88,0.000237,7]
[375188665,1753581074047,-437.0111166,0.00023781,2]
[375188667,1753581074056,-429.9056391,0.00023781,2]
[375188669,1753581074066,-429.2900619,0.00023781,2]
[375188671,1753581074075,-151.0,0.000238,6]
[375188673,1753581074085,-154.980881,0.0002381,15]
[375188675,1753581074095,-157.783385,0.0002381,15]
[375188677,1753581074105,-5819.64290364,0.00023831,10]
[375188679,1753581074114,-160.0,0.0002387,5]
[375188681,1753581074124,-486.57,0.00023886,2]
[375188683,1753581074134,-460.0,0.00023886,2]
[375188685,1753581074143,-463.5,0.00023886,2]
[375188687,1753581074152,-1684.43,0.00023886,2]
[375188697,1753581074241,-460.0,0.00023886,2]
[375188699,1753581074251,-1072.02,0.00023886,2]
[375188701,1753581074261,-296.12290268,0.00023886,2]
[375188703,1753581074271,-2025.96,0.00023886,2]
[375188705,1753581074281,-175.1018944,0.00023886,2]
[375188707,1753581074291,-460.0,0.00023886,2]
[375188709,1753581074300,-1006.77,0.00023886,2]
[375188711,1753581074310,-460.0,0.00023886,2]
[375188713,1753581074319,-176.13070462,0.00023886,2]
[375188715,1753581074329,-460.0,0.00023886,2]
[375188717,1753581074339,-674.58,0.00023886,2]
[375188719,1753581074348,-460.0,0.00023886,2]
[375188721,1753581074358,-756.57,0.00023886,2]
[375188723,1753581074368,-460.0,0.00023886,2]
[375188725,1753581074377,-471.46,0.00023886,2]
[375188727,1753581074386,-1620.18,0.00023886,2]
[375188729,1753581074395,-460.0,0.00023886,2]
[375188731,1753581074405,-1840.08,0.00023886,2]
[375188733,1753581074415,-460.0,0.00023886,2]
[375188735,1753581074429,-1601.61,0.00023886,2]
[375188737,1753581074438,-153.41544436,0.00023886,2]
[375188739,1753581074448,-663.29,0.00023886,2]
[375188741,1753581074459,-522.23,0.00023886,2]
[375188743,1753581074468,-1432.36,0.00023886,2]
[375188745,1753581074477,-304.61591449,0.00023886,2]
[375188747,1753581074487,-663.2,0.00023886,2]
[375188749,1753581074497,-507.63,0.00023886,2]
[375188751,1753581074508,-460.0,0.00023886,2]
[375188753,1753581074517,-682.33,0.00023886,2]
[375188755,1753581074527,-3030.31,0.00023889,2]
[375188757,1753581074536,-1017.69,0.00023889,2]
[375188759,1753581074546,-1075.9,0.00023889,2]
[375188761,1753581074555,-1162.34,0.00023892,2]
[375188763,1753581074565,-1676.65,0.00023892,2]
[375188765,1753581074576,-1307.85,0.00023892,2]
[375188767,1753581074585,-500.0,0.00023956,2]
[375188769,1753581074595,-151.0,0.00023987,7]
[375188771,1753581074605,-6187.93913489,0.00023987,2]
[375188773,1753581074615,-160.0,0.00024,7]
[375188775,1753581074625,-154.980881,0.00024022,9]
[375188777,1753581074634,-5819.64290364,0.00024038,10]
[375188779,1753581074643,-160.0,0.00024058,6]
[375188781,1753581074653,-25000.0,0.00024118,2]
[375188783,1753581074662,-486.57,0.0002416,2]
[375188785,1753581074672,-162.96552043,0.0002416,2]
[375188787,1753581074682,-463.5,0.0002416,2]
[375188789,1753581074691,-1684.43,0.0002416,2]
[375188791,1753581074700,-330.58863423,0.0002416,2]
[375188793,1753581074710,-1072.02,0.0002416,2]
[375188795,1753581074720,-2025.96,0.0002416,2]
[375188797,1753581074730,-460.0,0.0002416,2]
[375188799,1753581074740,-667.19523772,0.0002416,2]
[375188815,1753581074885,-339.57476228,0.0002416,2]
[375188817,1753581074895,-460.0,0.0002416,2]
[375188819,1753581074906,-460.0,0.0002416,2]
[375188821,1753581074915,-674.58,0.0002416,2]
[375188823,1753581074924,-236.82039716,0.0002416,2]
[375188825,1753581074937,-756.57,0.0002416,2]
[375188827,1753581074946,-460.0,0.0002416,2]
[375188829,1753581074956,-471.46,0.0002416,2]
[375188831,1753581074966,-1620.18,0.0002416,2]
[375188833,1753581074975,-144.31095549,0.0002416,2]
[375188868,1753581075306,-733.56,0.00019228,2]
[375188870,1753581075316,-461.46770672,0.00019228,2]
[375188872,1753581075326,-460.0,0.00019228,2]
[375188874,1753581075335,-460.0,0.00019228,2]
[375188876,1753581075344,-460.0,0.00019228,2]
[375188878,1753581075354,-460.0,0.00019228,2]
[375188880,1753581075363,-460.0,0.00019502,2]
[375188882,1753581075374,-733.56,0.00019502,2]
[375188884,1753581075383,-462.53437761,0.00019502,2]
[375188886,1753581075392,-460.0,0.00019502,2]
[375188888,1753581075401,-460.0,0.00019776,2]
[375188889,1753581075411,-460.0,0.00019776,2]
[375188892,1753581075424,-733.56,0.00019776,2]
[375188894,1753581075433,-460.0,0.0002005,2]
[375188896,1753581075443,-460.0,0.0002005,2]
[375188898,1753581075452,-460.0,0.0002005,2]
[375188900,1753581075463,-733.56,0.0002005,2]
[375188902,1753581075472,-151.0,0.0002005,2]
[375188904,1753581075482,-466.96862519,0.00020324,2]
[375188906,1753581075491,-460.0,0.00020324,2]
[375188916,1753581075581,-460.0,0.00020324,2]
[375188918,1753581075591,-733.56,0.00020324,2]
[375188920,1753581075601,-464.94943487,0.00020328,2]
[375188922,1753581075611,-460.0,0.00020598,2]
[375188924,1753581075622,-733.56,0.00020598,2]
[375188926,1753581075631,-460.0,0.00020598,2]
[375188928,1753581075641,-153.183154,0.00020598,2]
[375188930,1753581075651,-460.0,0.00020872,2]
[375188932,1753581075661,-460.0,0.00020872,2]
[375188934,1753581075671,-733.56,0.00020872,2]
[375188937,1753581075683,-460.0,0.00020872,2]
[375188939,1753581075692,-20420.80975323,0.00021046,2]
[375188941,1753581075702,-460.0,0.00021146,2]
[375188942,1753581075712,-460.0,0.00021146,2]
[375188945,1753581075723,-733.56,0.00021146,2]
[375188947,1753581075732,-460.0,0.00021146,2]
[375188949,1753581075742,-460.0,0.0002142,2]
[375188951,1753581075753,-537.20990336,0.0002142,2]
[375188953,1753581075763,-733.56,0.0002142,2]
[375188955,1753581075772,-460.0,0.0002142,2]
[375188957,1753581075781,-733.56,0.00021694,2]
[375188959,1753581075790,-460.0,0.00021694,2]
[375188961,1753581075801,-460.0,0.00021694,2]
[375188963,1753581075811,-733.56,0.00021968,2]
[375188965,1753581075820,-299.36356511,0.00021968,2]
[375188967,1753581075829,-460.0,0.00021968,2]
[375188969,1753581075838,-733.56,0.00022242,2]
[375188971,1753581075847,-733.56,0.00022516,2]
[375188973,1753581075857,-733.56,0.0002279,2]
[375188975,1753581075867,-151.0,0.00023022,2]
[375188977,1753581075878,-151.0,0.00023022,2]
[375188979,1753581075887,-151.0,0.00023022,2]
[375188981,1753581075897,-151.0,0.00023022,2]
[375188983,1753581075906,-151.0,0.00023022,2]
[375188985,1753581075916,-151.0,0.00023022,2]
[375188987,1753581075925,-733.56,0.00023064,2]
[375188989,1753581075935,-733.56,0.00023338,2]
[375188991,1753581075944,-733.56,0.00023612,2]
[375188993,1753581075953,-733.56,0.00023886,2]
[375188995,1753581075963,-315.68904451,0.0002416,2]
[375188997,1753581075973,-1840.08,0.0002416,2]
[375188999,1753581075982,-460.0,0.0002416,2]
[375189001,1753581075991,-1601.61,0.0002416,2]
[375189003,1753581076001,-663.29,0.0002416,2]
[375189005,1753581076010,-522.23,0.0002416,2]
[375189007,1753581076019,-1432.36,0.0002416,2]
[375189009,1753581076029,-663.2,0.0002416,2]
[375189011,1753581076040,-507.63,0.0002416,2]
[375189013,1753581076050,-460.0,0.0002416,2]
[375189015,1753581076060,-682.33,0.0002416,2]
[375189017,1753581076069,-3030.31,0.00024163,2]
[375189019,1753581076079,-1017.69,0.00024163,2]
[375189021,1753581076089,-1075.9,0.00024163,2]
[375189023,1753581076098,-1162.34,0.00024166,2]
[375189025,1753581076108,-1676.65,0.00024166,2]
[375189027,1753581076117,-1307.85,0.00024166,2]
[375189029,1753581076129,-154.980881,0.00024221,9]
[375189031,1753581076139,-5819.64290364,0.00024245,10]
[375189033,1753581076148,-160.0,0.00024247,7]
[375189035,1753581076158,-966.45,0.00024254,2]
[375189037,1753581076168,-280.38,0.00024297,2]
[375189039,1753581076178,-151.0,0.000243,5]
[375189041,1753581076188,-526.41699184,0.000243,10]
[375189043,1753581076198,-312.16666667,0.000243,10]
[375189045,1753581076207,-154.980881,0.0002442,9]
[375189047,1753581076216,-502.32865062,0.00024422,2]
[375189049,1753581076226,-154.980881,0.00024428,2]
[375189051,1753581076235,-152.81585,0.00024434,7]
[375189053,1753581076244,-151.0,0.00024434,7]
[375189055,1753581076253,-486.57,0.00024434,2]
[375189057,1753581076263,-463.5,0.00024434,2]
[375189059,1753581076272,-1684.43,0.00024434,2]
[375189061,1753581076281,-1072.02,0.00024434,2]
[375189063,1753581076291,-2025.96,0.00024434,2]
[375189065,1753581076300,-460.0,0.00024434,2]
[375189067,1753581076309,-1006.77,0.00024434,2]
[375189069,1753581076319,-460.0,0.00024434,2]
[375189071,1753581076328,-460.0,0.00024434,2]
[375189073,1753581076338,-674.58,0.00024434,2]
[375189075,1753581076347,-756.57,0.00024434,2]
[375189077,1753581076356,-460.0,0.00024434,2]
[375189079,1753581076366,-471.46,0.00024434,2]
[375189082,1753581076378,-1620.18,0.00024434,2]
[375189084,1753581076387,-460.0,0.00024434,2]
[375189086,1753581076403,-1840.08,0.00024434,2]
[375189088,1753581076413,-460.0,0.00024434,2]
[375189090,1753581076425,-1601.61,0.00024434,2]
[375189092,1753581076434,-663.29,0.00024434,2]
[375189094,1753581076443,-522.23,0.00024434,2]
[375189096,1753581076453,-1432.36,0.00024434,2]
[375189098,1753581076463,-663.2,0.00024434,2]
[375189100,1753581076472,-507.63,0.00024434,2]
[375189102,1753581076482,-460.0,0.00024434,2]
[375189104,1753581076491,-682.33,0.00024434,2]
[375189106,1753581076501,-280.38,0.00024434,2]
[375189108,1753581076510,-160.0,0.00024435,8]
[375189110,1753581076519,-3030.31,0.00024437,2]
[375189112,1753581076528,-1017.69,0.00024437,2]
[375189114,1753581076537,-1075.9,0.00024437,2]
[375189116,1753581076547,-1162.34,0.0002444,2]
[375189118,1753581076556,-1676.65,0.0002444,2]
[375189120,1753581076566,-1307.85,0.0002444,2]
[375189122,1753581076576,-5819.64290364,0.00024452,11]
[375189124,1753581076585,-367.95534141,0.00024471,2]
[375189126,1753581076594,-6187.93913489,0.00024523,2]
[375189128,1753581076605,-280.38,0.00024571,2]
[375189130,1753581076614,-160.0,0.00024623,9]
[375189132,1753581076625,-5819.64290364,0.00024659,11]
[375189134,1753581076634,-2039.06,0.000247,7]
[375189136,1753581076643,-23414.23,0.000247,2]
[375189138,1753581076652,-486.57,0.00024708,2]
[375189139,1753581076662,-463.5,0.00024708,2]
[375189142,1753581076672,-1684.43,0.00024708,2]
[375189143,1753581076681,-1072.02,0.00024708,2]
[375189144,1753581076691,-2025.96,0.00024708,2]
[375189145,1753581076700,-460.0,0.00024708,2]
[375189146,1753581076709,-1006.77,0.00024708,2]
[375189147,1753581076718,-460.0,0.00024708,2]
[375189148,1753581076727,-460.0,0.00024708,2]
[375189149,1753581076736,-674.58,0.00024708,2]
[375189150,1753581076745,-756.57,0.00024708,2]
[375189151,1753581076754,-460.0,0.00024708,2]
[375189152,1753581076763,-471.46,0.00024708,2]
[375189153,1753581076773,-1620.18,0.00024708,2]
[375189154,1753581076781,-434.51416874,0.00024708,2]
[375189155,1753581076790,-1840.08,0.00024708,2]
[375189157,1753581076800,-460.0,0.00024708,2]
[375189158,1753581076809,-1601.61,0.00024708,2]
[375189160,1753581076820,-663.29,0.00024708,2]
[375189162,1753581076829,-522.23,0.00024708,2]
[375189164,1753581076838,-1432.36,0.00024708,2]
[375189180,1753581076977,-663.2,0.00024708,2]
[375189182,1753581076987,-507.63,0.00024708,2]
[375189184,1753581076997,-460.0,0.00024708,2]
[375189186,1753581077006,-682.33,0.00024708,2]
[375189188,1753581077015,-3030.31,0.00024711,2]
[375189190,1753581077024,-1017.69,0.00024711,2]
[375189192,1753581077034,-1075.9,0.00024711,2]
[375189194,1753581077043,-1162.34,0.00024714,2]
[375189196,1753581077052,-1676.65,0.00024714,2]
[375189198,1753581077062,-1307.85,0.00024714,2]
[375189200,1753581077071,-168.0,0.00024793,2]
[375189202,1753581077080,-787.04,0.000248,7]
[375189204,1753581077089,-1406.89840428,0.000248,3]
[375189205,1753581077099,-160.0,0.00024812,10]
[375189207,1753581077108,-151.0,0.00024814,7]
[375189209,1753581077117,-151.0,0.00024814,7]
[375189211,1753581077128,-151.0,0.00024814,7]
[375189213,1753581077137,-183.2569345,0.0002483,2]
[375189215,1753581077147,-5819.64290364,0.00024866,12]
[375189217,1753581077157,-151.0,0.000249,7]
[375189219,1753581077166,-156.478559,0.000249,7]
[375189221,1753581077175,-158.354655,0.000249,7]
[375189223,1753581077185,-210.400668,0.000249,7]
[375189225,1753581077194,-186.347706,0.000249,7]
[375189227,1753581077204,-151.0,0.000249,7]
[375189229,1753581077214,-151.0,0.000249,7]
[375189231,1753581077224,-201.425766,0.000249,7]
[375189233,1753581077233,-151.0,0.000249,7]
[375189235,1753581077243,-151.0,0.000249,7]
[375189237,1753581077252,-500.0,0.00024932,2]
[375189239,1753581077261,-154.980881,0.00024941,4]
[375189241,1753581077271,-150.0,0.00024945,2]
[375189243,1753581077280,-500.0,0.00024963,2]
[375189245,1753581077290,-486.57,0.00024982,2]